bitfinex/quotes_BTCUSD_20220105
["timestamp","ask_amount","ask_price","bid_price","bid_amount"]
[1641379964108,0.28288205,46803.0,46801.0,0.106854]
[1641379965203,0.27297245,46802.0,46801.0,0.106854]
[1641379965402,0.27297245,46802.0,46801.0,0.156854]
[1641379966605,0.34931805,46803.0,46801.0,0.156854]
[1641379966805,0.34931805,46803.0,46801.0,0.21028945]
[1641379967250,0.078436,46803.0,46801.0,0.21028945]
[1641379967545,0.012,46803.0,46802.0,0.813695]
[1641379967745,0.012,46803.0,46802.0,0.353695]
[1641379968345,0.055428,46809.0,46802.0,0.353695]
[1641379968550,0.053428,46808.0,46801.0,0.21028945]
[1641379968746,0.053428,46808.0,46802.0,0.106855]
[1641379968945,0.053428,46808.0,46804.0,0.053428]
[1641379969145,0.082428,46808.0,46804.0,0.053428]
[1641379969748,0.68633431,46807.0,46804.0,0.053428]
[1641379969955,0.68633431,46807.0,46798.0,0.66187]
[1641379969956,0.353695,46805.0,46798.0,0.66187]
[1641379970150,0.00125041,46799.0,46798.0,0.66187]
[1641379970802,1.26784389,46799.0,46798.0,0.66187]
[1641379970998,1.67498589,46799.0,46798.0,0.66187]
[1641379971201,1.78698589,46799.0,46798.0,0.66187]
[1641379971399,1.40613193,46799.0,46798.0,0.66187]
[1641379971998,1.40613193,46799.0,46798.0,0.56187]
[1641379972399,1.39413193,46799.0,46798.0,0.56187]
[1641379973199,1.40513193,46799.0,46798.0,0.46187]
[1641379974399,1.39413193,46799.0,46798.0,0.46187]
[1641379975267,1.40513193,46799.0,46798.0,0.46187]
[1641379976372,1.39413193,46799.0,46798.0,0.46187]
[1641379977168,1.40513193,46799.0,46798.0,0.46187]
[1641379978394,1.39413193,46799.0,46798.0,0.46187]
[1641379979198,1.30513193,46799.0,46798.0,0.46187]
[1641379979399,1.30473548,46799.0,46798.0,0.46187]
[1641379980401,1.29373548,46799.0,46798.0,0.46187]
[1641379981200,1.30473548,46799.0,46798.0,0.46187]
[1641379982448,1.29373548,46799.0,46798.0,0.46187]
[1641379982652,0.407142,46799.0,46798.0,0.46187]
[1641379982851,0.053447,46799.0,46798.0,0.46187]
[1641379983052,0.053448,46800.0,46798.0,0.46187]
[1641379983352,0.024,46799.0,46798.0,0.46187]
[1641379984350,0.024,46799.0,46798.0,0.515303]
[1641379984549,0.053448,46800.0,46798.0,0.515303]
[1641379985152,0.130883,46800.0,46798.0,0.515303]
[1641379986603,0.106883,46800.0,46798.0,0.515303]
[1641379987202,0.123883,46800.0,46798.0,0.515303]
[1641379987603,0.123883,46800.0,46798.0,0.46187]
[1641379987803,0.353695,46799.0,46798.0,0.46187]
[1641379988803,0.460587,46799.0,46798.0,0.46187]
[1641379989205,0.471587,46799.0,46798.0,0.46187]
[1641379990453,0.460587,46799.0,46798.0,0.46187]
[1641379991257,0.471587,46799.0,46798.0,0.46187]
[1641379992057,0.571587,46799.0,46798.0,0.46187]
[1641379992254,0.471587,46799.0,46798.0,0.46187]
[1641379992453,0.353695,46799.0,46798.0,0.46187]
[1641379993154,0.353695,46799.0,46798.0,0.45787]
[1641379993401,0.365695,46799.0,46798.0,0.45787]
[1641379993599,0.47258,46799.0,46798.0,0.45787]
[1641379994602,0.46058,46799.0,46798.0,0.45787]
[1641379995202,0.47258,46799.0,46798.0,0.45787]
[1641379995404,0.47172649,46799.0,46798.0,0.45787]
[1641379996704,0.45972649,46799.0,46798.0,0.45787]
[1641379997352,0.012,46799.0,46798.0,0.73112162]
[1641379997551,0.012,46799.0,46798.0,1.08481662]
[1641379998550,0.053448,46800.0,46798.0,1.08481662]
[1641379998751,0.053448,46800.0,46799.0,0.2716956]
[1641379998953,0.053448,46800.0,46799.0,0.4662526]
[1641379999352,0.092448,46800.0,46799.0,0.4662526]
[1641379999551,0.092448,46800.0,46799.0,0.194557]
[1641380000152,0.092448,46800.0,46799.0,0.554557]
[1641380000552,0.053448,46800.0,46799.0,0.554557]
[1641380001201,0.053448,46800.0,46799.0,0.82513712]
[1641380001400,0.082448,46800.0,46799.0,0.82513712]
[1641380002601,0.053448,46800.0,46799.0,0.82513712]
[1641380003101,0.053448,46800.0,46799.0,0.194557]
[1641380003301,0.096448,46800.0,46799.0,0.194557]
[1641380004103,0.096448,46800.0,46799.0,0.46729335]
[1641380004303,0.096448,46800.0,46799.0,0.194557]
[1641380004548,0.053448,46800.0,46799.0,0.46906612]
[1641380005351,0.067448,46800.0,46799.0,0.46906612]
[1641380006048,0.067448,46800.0,46799.0,1.02906612]
[1641380006649,0.053448,46800.0,46799.0,1.02906612]
[1641380006850,0.053448,46800.0,46799.0,0.46906612]
[1641380007249,0.056448,46800.0,46799.0,0.46906612]
[1641380008150,0.056448,46800.0,46799.0,1.01906612]
[1641380008397,0.003,46800.0,46799.0,1.01906612]
[1641380008597,0.053428,46802.0,46799.0,1.01906612]
[1641380008797,0.053428,46802.0,46799.0,1.12592191]
[1641380008998,0.053428,46802.0,46800.0,0.05]
[1641380009198,0.053428,46802.0,46801.0,0.353671]
[1641380009501,0.035,46802.0,46801.0,0.353671]
[1641380009700,0.035,46802.0,46801.0,0.403671]
[1641380010104,0.035,46802.0,46801.0,0.813671]
[1641380010500,0.053428,46803.0,46801.0,0.05]
[1641380011302,0.068428,46803.0,46801.0,0.05]
[1641380012560,0.053428,46803.0,46801.0,0.05]
[1641380013360,0.064428,46803.0,46801.0,0.05]
[1641380014663,0.053428,46803.0,46801.0,0.05]
[1641380015368,0.064428,46803.0,46801.0,0.05]
[1641380016010,0.40099437,46803.0,46801.0,0.05]
[1641380016208,0.40099437,46803.0,46800.0,0.15685522]
[1641380016209,0.34756037,46803.0,46799.0,0.106861]
[1641380016407,0.053443,46802.0,46798.0,0.511313]
[1641380016610,0.053443,46802.0,46798.0,0.45787]
[1641380017007,0.353695,46801.0,46798.0,0.45787]
[1641380017207,0.25395449,46800.0,46798.0,0.45787]
[1641380017407,0.40714,46799.0,46798.0,0.45787]
[1641380018209,0.69927644,46799.0,46798.0,0.45787]
[1641380019210,0.74207644,46799.0,46798.0,0.45787]
[1641380019409,1.74435673,46799.0,46798.0,0.030228]
[1641380019650,0.85435673,46799.0,46798.0,0.030228]
[1641380019847,0.90781473,46799.0,46798.0,0.030228]
[1641380020048,0.32278745,46786.0,46781.0,0.106911]
[1641380020249,0.053458,46782.0,46781.0,0.106911]
[1641380020653,0.37781498,46785.0,46781.0,0.106911]
[1641380020849,0.37781498,46785.0,46782.0,0.053455]
[1641380021049,0.106915,46785.0,46782.0,0.053455]
[1641380021451,0.053456,46784.0,46782.0,0.053455]
[1641380021651,0.053456,46784.0,46782.0,0.10690983]
[1641380021851,0.106914,46784.0,46782.0,0.10690983]
[1641380022053,0.106914,46784.0,46782.0,0.15690983]
[1641380022553,0.353695,46783.0,46782.0,0.15690983]
[1641380022757,0.353695,46783.0,46782.0,0.103455]
[1641380023397,0.364695,46783.0,46782.0,0.103455]
[1641380023600,0.364695,46783.0,46782.0,0.153455]
[1641380024210,0.364695,46783.0,46782.0,0.148455]
[1641380024598,0.353695,46783.0,46782.0,0.148455]
[1641380025399,0.012,46783.0,46782.0,0.148455]
[1641380026300,0.012,46783.0,46782.0,1.21215]
[1641380026701,0.012,46783.0,46782.0,0.50215]
[1641380027048,0.053458,46784.0,46783.0,0.05]
[1641380027248,0.106915,46785.0,46783.0,0.05]
[1641380027249,0.43526255,46785.0,46783.0,0.05]
[1641380027448,3.21646362,46785.0,46783.0,0.05]
[1641380027647,0.353695,46784.0,46783.0,0.05]
[1641380028051,0.053455,46784.0,46783.0,0.05]
[1641380028250,0.106915,46785.0,46783.0,0.05]
[1641380028950,0.106915,46785.0,46783.0,0.10345298]
[1641380029152,0.106915,46785.0,46784.0,0.353695]
[1641380029351,0.021,46785.0,46784.0,0.45638029]
[1641380029848,0.021,46785.0,46784.0,1.63638029]
[1641380030051,0.021,46785.0,46784.0,1.74326627]
[1641380030652,0.053456,46787.0,46784.0,1.79671527]
[1641380030905,0.053456,46787.0,46785.0,0.7165485]
[1641380031112,0.06576553,46788.0,46786.0,0.2359463]
[1641380031307,0.06576553,46788.0,46787.0,1.65957185]
[1641380031506,0.01232453,46788.0,46787.0,1.703669]
[1641380032106,0.05344,46790.0,46788.0,1.3]
[1641380032310,0.10688,46794.0,46789.0,0.66268042]
[1641380032508,0.053436,46802.0,46793.0,0.45362099]
[1641380032709,0.053436,46802.0,46793.0,0.50152099]
[1641380032907,0.053436,46802.0,46793.0,0.551521]
[1641380033108,0.053436,46802.0,46793.0,0.601521]
[1641380033507,0.053436,46802.0,46797.0,0.05343439]
[1641380033508,0.081436,46802.0,46797.0,0.05343439]
[1641380033711,0.053434,46800.0,46799.0,0.053432]
[1641380033908,0.053434,46800.0,46798.0,0.106867]
[1641380034109,0.053434,46800.0,46798.0,0.156867]
[1641380034308,0.053434,46800.0,46799.0,0.05]
[1641380035050,0.106868,46802.0,46799.0,0.05]
[1641380035250,0.36882579,46802.0,46799.0,0.10343369]
[1641380035450,0.068,46800.0,46799.0,0.10343369]
[1641380035850,0.068,46800.0,46799.0,0.15686769]
[1641380036852,0.36882579,46802.0,46799.0,0.15686769]
[1641380037453,0.39582579,46802.0,46799.0,0.15686769]
[1641380038701,0.36882579,46802.0,46799.0,0.15686769]
[1641380038906,1.6312456,46800.0,46799.0,0.15686769]
[1641380039204,1.9849406,46800.0,46799.0,0.053434]
[1641380039402,2.0009406,46800.0,46799.0,0.053434]
[1641380040802,1.9849406,46800.0,46799.0,0.053434]
[1641380041403,1.9979406,46800.0,46799.0,0.053434]
[1641380041705,1.9979406,46800.0,46799.0,0.103434]
[1641380042147,0.366695,46800.0,46799.0,0.103434]
[1641380042748,0.353695,46800.0,46799.0,0.103434]
[1641380042948,0.05344,46801.0,46799.0,0.103434]
[1641380043349,0.05344,46801.0,46799.0,0.13823523]
[1641380043648,0.016,46801.0,46799.0,0.13823523]
[1641380044648,0.106868,46802.0,46799.0,0.13823523]
[1641380045449,0.129868,46802.0,46799.0,0.13823523]
[1641380046707,0.106868,46802.0,46799.0,0.13823523]
[1641380046911,0.106868,46802.0,46799.0,0.103434]
[1641380047508,0.121868,46802.0,46799.0,0.103434]
[1641380047710,0.121868,46802.0,46799.0,0.14837869]
[1641380048410,0.121868,46802.0,46799.0,0.103434]
[1641380048808,0.106868,46802.0,46799.0,0.103434]
[1641380049010,0.053436,46801.0,46799.0,0.103434]
[1641380049650,0.067436,46801.0,46799.0,0.103434]
[1641380050851,0.053436,46801.0,46799.0,0.103434]
[1641380051652,0.064436,46801.0,46799.0,0.103434]
[1641380052753,0.053436,46801.0,46799.0,0.103434]
[1641380053602,0.064436,46801.0,46799.0,0.103434]
[1641380054807,0.053436,46801.0,46799.0,0.103434]
[1641380055208,0.353695,46800.0,46799.0,0.103434]
[1641380057549,0.344695,46800.0,46799.0,0.103434]
[1641380058849,0.332695,46800.0,46799.0,0.103434]
[1641380059548,0.344695,46800.0,46799.0,0.103434]
[1641380061203,0.332695,46800.0,46799.0,0.103434]
[1641380061602,0.344695,46800.0,46799.0,0.103434]
[1641380062406,0.60819561,46800.0,46799.0,0.103434]
[1641380062603,0.344695,46800.0,46799.0,0.103434]
[1641380063603,0.355695,46800.0,46799.0,0.103434]
[1641380064852,0.355695,46800.0,46799.0,0.053434]
[1641380065056,0.61614599,46800.0,46799.0,0.053434]
[1641380065254,0.66842026,46800.0,46795.0,0.05]
[1641380065455,0.66842026,46800.0,46791.0,0.106902]
[1641380065456,0.053451,46798.0,46791.0,0.106902]
[1641380065755,0.00127904,46794.0,46792.0,0.6411]
[1641380065954,0.28896559,46793.0,46792.0,0.6411]
[1641380066254,0.57886115,46793.0,46792.0,0.6411]
[1641380066653,0.73231615,46793.0,46792.0,0.6411]
[1641380067552,0.74331615,46793.0,46792.0,0.6411]
[1641380068606,1.09702215,46793.0,46792.0,0.6411]
[1641380068806,1.08602215,46793.0,46792.0,0.6411]
[1641380069607,1.09702215,46793.0,46792.0,0.6411]
[1641380070808,1.08602215,46793.0,46792.0,0.6411]
[1641380071009,1.08602215,46793.0,46792.0,0.213461]
[1641380071609,1.09702215,46793.0,46792.0,0.213461]
[1641380072963,1.09702215,46793.0,46791.0,0.053456]
[1641380072964,0.71,46792.0,46784.0,0.106915]
[1641380073159,0.053461,46789.0,46784.0,0.156915]
[1641380073354,0.30250267,46788.0,46784.0,0.206915]
[1641380073755,2.37645525,46785.0,46784.0,0.206915]
[1641380073954,3.1014474,46785.0,46784.0,0.206915]
[1641380075559,0.73599215,46785.0,46784.0,0.1]
[1641380076902,0.72499215,46785.0,46784.0,0.1]
[1641380077402,0.37128615,46785.0,46784.0,0.1]
[1641380077604,0.38228615,46785.0,46784.0,0.1]
[1641380078904,0.37128615,46785.0,46784.0,0.1]
[1641380079550,0.38228615,46785.0,46784.0,0.1]
[1641380080951,0.37128615,46785.0,46784.0,0.1]
[1641380081653,0.38228615,46785.0,46784.0,0.1]
[1641380082853,0.37128615,46785.0,46784.0,0.1]
[1641380083700,0.38228615,46785.0,46784.0,0.1]
[1641380084801,0.38228615,46785.0,46784.0,0.05]
[1641380085002,0.37128615,46785.0,46784.0,0.05]
[1641380085603,0.38228615,46785.0,46784.0,0.05]
[1641380086806,0.37128615,46785.0,46784.0,0.05]
[1641380087750,0.38128615,46785.0,46784.0,0.05]
[1641380088953,0.37128615,46785.0,46784.0,0.05]
[1641380089754,0.38128615,46785.0,46784.0,0.1]
[1641380091015,0.37128615,46785.0,46784.0,0.1]
[1641380091611,0.38228615,46785.0,46784.0,0.1]
[1641380093010,0.37128615,46785.0,46784.0,0.1]
[1641380093614,0.38228615,46785.0,46784.0,0.1]
[1641380093811,0.38228615,46785.0,46784.0,0.05]
[1641380094653,0.011,46785.0,46784.0,0.05]
[1641380094854,0.011,46785.0,46784.0,0.1]
[1641380095053,0.053459,46786.0,46784.0,0.1]
[1641380095252,0.053459,46786.0,46784.0,0.153455]
[1641380095756,0.064459,46786.0,46784.0,0.153455]
[1641380096459,0.064459,46786.0,46784.0,0.20690827]
[1641380097056,0.053459,46786.0,46784.0,0.20690827]
[1641380097654,0.065459,46786.0,46784.0,0.20690827]
[1641380098706,0.065459,46786.0,46784.0,0.15690827]
[1641380098905,0.053459,46786.0,46784.0,0.15690827]
[1641380099707,0.065459,46786.0,46784.0,0.15690827]
[1641380099906,0.065459,46786.0,46785.0,0.05]
[1641380100308,0.012,46786.0,46785.0,0.05]
[1641380100908,0.053456,46787.0,46785.0,0.05]
[1641380101705,0.064456,46787.0,46785.0,0.05]
[1641380101905,0.064456,46787.0,46785.0,0.04878844]
[1641380102152,0.33343373,46787.0,46785.0,0.04878844]
[1641380102953,0.053456,46787.0,46785.0,0.04878844]
[1641380103753,0.061456,46787.0,46785.0,0.04878844]
[1641380104956,0.053456,46787.0,46785.0,0.04878844]
[1641380105655,0.062456,46787.0,46785.0,0.04878844]
[1641380106905,0.053456,46787.0,46785.0,0.04878844]
[1641380107905,0.27468809,46786.0,46785.0,0.04878844]
[1641380108306,0.27468809,46786.0,46784.0,0.103455]
[1641380108505,0.27468809,46786.0,46784.0,0.153455]
[1641380108704,0.32814409,46786.0,46784.0,0.153455]
[1641380108905,0.053456,46786.0,46784.0,0.153455]
[1641380109109,0.053456,46786.0,46784.0,0.20690917]
[1641380109750,0.061456,46786.0,46784.0,0.20690917]
[1641380110351,0.26960432,46785.0,46784.0,0.20690917]
[1641380110552,0.061456,46786.0,46784.0,0.20690917]
[1641380110953,0.053456,46786.0,46784.0,0.20690917]
[1641380111554,0.053456,46786.0,46784.0,0.14888681]
[1641380111757,0.062456,46786.0,46784.0,0.19888681]
[1641380111953,0.062456,46786.0,46784.0,0.14543264]
[1641380113155,0.2789925,46785.0,46784.0,0.04543264]
[1641380113407,0.3268925,46785.0,46780.0,0.1092453]
[1641380113606,0.3268925,46785.0,46782.0,0.053463]
[1641380113809,0.053463,46784.0,46782.0,0.053463]
[1641380114009,0.0479,46783.0,46782.0,0.053463]
[1641380115710,0.37090081,46783.0,46782.0,0.053463]
[1641380116710,0.93669924,46783.0,46780.0,0.0023223]
[1641380117161,0.45504123,46781.0,46780.0,0.0023223]
[1641380117363,0.77206304,46781.0,46780.0,0.0023223]
[1641380117658,0.77206304,46781.0,46779.0,0.01238523]
[1641380117659,1.43647472,46781.0,46779.0,0.01238523]
[1641380117859,1.363706,46780.0,46779.0,0.01238523]
[1641380118064,0.32622173,46773.0,46767.0,0.071]
[1641380118261,0.33490039,46771.0,46767.0,0.071]
[1641380118461,0.43627639,46771.0,46767.0,0.071]
[1641380118660,0.53627639,46771.0,46767.0,0.071]
[1641380119860,0.54827639,46771.0,46767.0,0.124476]
[1641380120263,0.053477,46769.0,46767.0,0.124476]
[1641380121131,0.053477,46769.0,46767.0,0.174476]
[1641380121731,0.012,46769.0,46768.0,0.353706]
[1641380121933,0.012,46769.0,46768.0,1.180641]
[1641380122136,0.012,46769.0,46768.0,1.230641]
[1641380123032,0.106945,46771.0,46768.0,1.230641]
[1641380123232,0.106945,46771.0,46769.0,0.05]
[1641380123832,0.117945,46771.0,46769.0,0.05]
[1641380127064,0.106945,46771.0,46769.0,0.05]
[1641380127767,0.117945,46771.0,46769.0,0.05]
[1641380127965,0.11637286,46771.0,46769.0,0.05]
[1641380129607,0.10537286,46771.0,46769.0,0.05]
[1641380129911,0.11637286,46771.0,46769.0,0.05]
[1641380131107,0.10537286,46771.0,46769.0,0.05]
[1641380131308,0.053469,46771.0,46769.0,0.05]
[1641380131709,0.064469,46771.0,46769.0,0.10347439]
[1641380132356,0.064469,46771.0,46769.0,0.05347439]
[1641380132952,0.053469,46771.0,46769.0,0.05347439]
[1641380133854,0.064469,46771.0,46769.0,0.10347439]
[1641380134654,0.27183915,46770.0,46769.0,0.10347439]
[1641380135060,0.053469,46771.0,46769.0,0.10347439]
[1641380135908,0.064469,46771.0,46769.0,0.10347439]
[1641380137209,0.053469,46771.0,46769.0,0.10347439]
[1641380137809,0.064469,46771.0,46769.0,0.10347439]
[1641380139010,0.053469,46771.0,46769.0,0.10347439]
[1641380139650,0.053469,46771.0,46769.0,0.09847439]
[1641380139850,0.064469,46771.0,46769.0,0.09847439]
[1641380141055,0.053469,46771.0,46769.0,0.09847439]
[1641380141456,0.27178088,46770.0,46769.0,0.09847439]
[1641380141655,0.053469,46771.0,46769.0,0.09847439]
[1641380141854,0.064469,46771.0,46769.0,0.09847439]
[1641380142954,0.053469,46771.0,46769.0,0.09847439]
[1641380143812,0.064469,46771.0,46769.0,0.09847439]
[1641380144012,0.3321817,46771.0,46769.0,0.09847439]
[1641380144216,0.27274854,46770.0,46769.0,0.09847439]
[1641380144914,0.053469,46771.0,46769.0,0.09847439]
[1641380145716,0.064469,46771.0,46769.0,0.09847439]
[1641380147063,0.26525219,46770.0,46769.0,0.09847439]
[1641380147871,0.011,46770.0,46769.0,0.09847439]
[1641380149068,0.053469,46771.0,46769.0,0.09847439]
[1641380149868,0.064469,46771.0,46769.0,0.09847439]
[1641380150068,0.26738441,46770.0,46769.0,0.09847439]
[1641380150277,0.26738441,46770.0,46764.0,0.053474]
[1641380150472,0.053474,46768.0,46764.0,0.16042139]
[1641380150920,0.053474,46768.0,46764.0,0.10694739]
[1641380151121,0.053474,46768.0,46764.0,0.15694739]
[1641380151521,0.053474,46768.0,46765.0,0.10694521]
[1641380151819,0.063474,46768.0,46762.0,0.05]
[1641380152020,0.063474,46768.0,46758.0,0.490053]
[1641380152219,0.063474,46768.0,46759.0,0.995236]
[1641380152618,0.063474,46768.0,46762.0,0.053474]
[1641380152818,0.063474,46768.0,46763.0,0.216055]
[1641380153023,0.053474,46768.0,46765.0,0.05347094]
[1641380153221,0.053474,46768.0,46766.0,0.35365]
[1641380153620,0.00123717,46772.0,46766.0,0.40365]
[1641380153621,0.053469,46770.0,46766.0,0.40365]
[1641380153821,0.01,46768.0,46767.0,0.10347]
[1641380154223,0.01,46768.0,46767.0,2.06313644]
[1641380154667,0.01,46768.0,46767.0,1.757176]
[1641380155068,0.38111181,46778.0,46772.0,0.05345929]
[1641380155468,0.38111181,46778.0,46772.0,0.053464]
[1641380155672,0.38111181,46778.0,46770.0,0.05]
[1641380155870,0.40311181,46778.0,46770.0,0.05]
[1641380156270,0.40311181,46778.0,46770.0,0.045]
[1641380156470,0.075461,46778.0,46773.0,0.053464]
[1641380156670,0.075461,46778.0,46769.0,0.21039292]
[1641380156671,0.27722362,46777.0,46769.0,0.21039292]
[1641380156870,0.27722362,46777.0,46769.0,0.05]
[1641380156871,0.053468,46774.0,46769.0,0.05]
[1641380157070,0.053468,46774.0,46767.0,0.05]
[1641380157472,0.053468,46774.0,46765.0,0.0534703]
[1641380157871,0.064468,46774.0,46769.0,0.053469]
[1641380158508,0.064468,46774.0,46766.0,0.05]
[1641380159111,0.053468,46774.0,46766.0,0.05]
[1641380159311,0.053468,46774.0,46765.0,0.05]
[1641380159712,0.063468,46774.0,46765.0,0.05]
[1641380159915,0.063468,46774.0,46768.0,0.053471]
[1641380160113,0.063468,46774.0,46766.0,0.05]
[1641380160312,0.063468,46774.0,46765.0,0.05]
[1641380160818,0.063468,46774.0,46763.0,0.4099]
[1641380161015,0.053468,46774.0,46767.0,0.053472]
[1641380161219,0.26859834,46773.0,46764.0,0.053474]
[1641380161416,0.053473,46769.0,46764.0,0.053474]
[1641380161615,0.053473,46769.0,46765.0,0.353706]
[1641380161816,0.053473,46769.0,46765.0,0.403706]
[1641380162065,0.053473,46769.0,46763.0,0.1]
[1641380162265,0.053473,46769.0,46764.0,0.353706]
[1641380162463,0.053473,46769.0,46763.0,0.05]
[1641380162464,0.29639348,46768.0,46763.0,0.05]
[1641380162668,0.053477,46765.0,46763.0,0.05]
[1641380162865,0.053477,46765.0,46764.0,0.64152]
[1641380163066,0.053477,46765.0,46764.0,0.69152]
[1641380163768,0.063477,46765.0,46764.0,0.995226]
[1641380164369,0.01,46765.0,46764.0,0.995226]
[1641380165167,0.053474,46766.0,46764.0,0.995226]
[1641380165369,0.053474,46766.0,46765.0,0.216006]
[1641380165567,0.053474,46766.0,46764.0,0.64152]
[1641380165817,0.26570295,46765.0,46764.0,0.64152]
[1641380166120,0.063474,46766.0,46764.0,0.64152]
[1641380166514,0.063474,46766.0,46764.0,0.63652]
[1641380166515,0.32913538,46766.0,46764.0,0.63652]
[1641380166714,0.33038154,46766.0,46764.0,0.63652]
[1641380167114,0.32038154,46766.0,46764.0,0.63652]
[1641380167316,0.05472016,46766.0,46764.0,0.63652]
[1641380167515,0.053474,46766.0,46764.0,0.63652]
[1641380167715,0.063474,46766.0,46764.0,0.63652]
[1641380169118,0.053474,46766.0,46764.0,0.63652]
[1641380169560,0.053474,46766.0,46764.0,0.689995]
[1641380169760,0.063474,46766.0,46764.0,0.689995]
[1641380169961,0.063474,46766.0,46765.0,0.353706]
[1641380170361,0.063474,46766.0,46764.0,0.63652]
[1641380170762,0.063474,46766.0,46764.0,0.78652]
[1641380170966,0.063474,46766.0,46765.0,1.593706]
[1641380170967,0.01,46766.0,46765.0,1.593706]
[1641380171167,0.27931468,46781.0,46765.0,2.00174959]
[1641380171375,0.27931468,46781.0,46772.0,0.053466]
[1641380171766,0.27605355,46775.0,46772.0,0.053466]
[1641380172165,0.053466,46774.0,46772.0,0.053466]
[1641380172365,0.27605355,46775.0,46772.0,0.103466]
[1641380172564,0.27605355,46775.0,46772.0,0.153466]
[1641380173812,0.28905355,46775.0,46772.0,0.153466]
[1641380174311,0.34251855,46775.0,46772.0,0.153466]
[1641380174512,0.34251855,46775.0,46772.0,0.053466]
[1641380174711,0.34251855,46775.0,46770.0,0.053469]
[1641380175113,0.32951855,46775.0,46768.0,0.16039948]
[1641380175315,0.32951855,46775.0,46766.0,0.2925]
[1641380175812,0.33851855,46775.0,46766.0,0.2925]
[1641380176014,0.33851855,46775.0,46766.0,0.3425]
[1641380176212,0.33851855,46775.0,46766.0,0.2925]
[1641380176815,0.33851855,46775.0,46768.0,0.053473]
[1641380177059,0.33851855,46775.0,46766.0,0.2925]
[1641380177060,0.32951855,46775.0,46766.0,0.2925]
[1641380177759,0.33751855,46775.0,46766.0,0.2925]
[1641380177961,0.39099455,46775.0,46766.0,0.2925]
[1641380178159,0.053475,46771.0,46766.0,0.2925]
[1641380178359,0.053475,46771.0,46767.0,0.053474]
[1641380179764,0.061475,46771.0,46767.0,0.053474]
[1641380181114,0.053475,46771.0,46767.0,0.053474]
[1641380181913,0.063475,46771.0,46767.0,0.053474]
[1641380182114,0.062837,46771.0,46767.0,0.053474]
[1641380183116,0.052837,46771.0,46767.0,0.053474]
[1641380183713,0.04270829,46771.0,46767.0,0.053474]
[1641380183914,0.05270829,46771.0,46767.0,0.053474]
[1641380185161,0.04270829,46771.0,46767.0,0.053474]
[1641380185764,0.04270829,46771.0,46768.0,0.05346802]
[1641380185765,0.01,46771.0,46768.0,0.05346802]
[1641380185960,0.01,46771.0,46769.0,0.407171]
[1641380186162,0.01,46771.0,46769.0,0.457171]
[1641380186461,0.01,46771.0,46769.0,0.507171]
[1641380187063,0.27605355,46775.0,46769.0,0.507171]
[1641380187261,0.38299455,46775.0,46769.0,0.153465]
[1641380187461,0.38299455,46775.0,46770.0,0.05347]
[1641380187762,0.39499455,46775.0,46765.0,0.05124605]
[1641380187961,0.053467,46774.0,46769.0,0.053466]
[1641380188412,0.053467,46774.0,46771.0,0.05346515]
[1641380189011,0.053467,46774.0,46769.0,0.103466]
[1641380189211,0.053467,46774.0,46769.0,0.053466]
[1641380189614,0.053467,46774.0,46770.0,0.05247537]
[1641380189813,0.066467,46774.0,46771.0,0.053466]
[1641380190415,0.066467,46774.0,46771.0,0.103466]
[1641380190833,0.066467,46774.0,46771.0,0.053466]
[1641380191717,0.053467,46774.0,46771.0,0.053466]
[1641380191921,0.064467,46774.0,46771.0,0.053466]
[1641380192162,0.064467,46774.0,46770.0,0.05347]
[1641380193163,0.053467,46774.0,46768.0,0.053472]
[1641380193364,0.053467,46774.0,46765.0,0.16040853]
[1641380193365,0.053467,46774.0,46765.0,0.106937]
[1641380193562,0.053467,46774.0,46766.0,0.05]
[1641380193762,0.064467,46774.0,46766.0,0.05]
[1641380193962,0.064467,46774.0,46766.0,0.103469]
[1641380194362,0.064467,46774.0,46769.0,0.053471]
[1641380195161,0.053467,46774.0,46769.0,0.053471]
[1641380195363,0.053467,46774.0,46769.0,0.10693851]
[1641380195814,0.065467,46774.0,46769.0,0.10693851]
[1641380196416,0.065467,46774.0,46771.0,0.053468]
[1641380197217,0.053467,46774.0,46768.0,0.106932]
[1641380197415,0.32036261,46774.0,46768.0,0.106932]
[1641380197815,0.33136261,46774.0,46768.0,0.106932]
[1641380198016,0.33136261,46774.0,46768.0,0.21386867]
[1641380198415,0.33136261,46774.0,46770.0,0.05347]
[1641380198614,0.33136261,46774.0,46768.0,0.1604]
[1641380198815,0.064467,46774.0,46768.0,0.106932]
[1641380199017,0.064467,46774.0,46769.0,0.053466]
[1641380199218,0.053467,46774.0,46769.0,0.2672965]
[1641380199419,0.5425,46784.0,46770.0,0.353706]
[1641380199666,0.5425,46784.0,46770.0,0.0479]
[1641380199869,0.009,46774.0,46773.0,0.106909]
[1641380200065,0.009,46774.0,46773.0,1.858515]
[1641380200265,0.009,46774.0,46773.0,1.85977234]
[1641380200465,0.009,46774.0,46773.0,1.96322734]
[1641380200666,0.009,46774.0,46773.0,0.66322734]
[1641380200867,0.009,46774.0,46773.0,1.38322734]
[1641380201067,0.01234006,46779.0,46773.0,1.38322734]
[1641380201269,0.01234006,46779.0,46776.0,0.053454]
[1641380201468,0.01234006,46779.0,46776.0,0.16036]
[1641380201668,0.01234006,46779.0,46777.0,0.34620377]
[1641380201869,0.01234006,46779.0,46778.0,1.58830935]
[1641380201870,0.02734006,46779.0,46778.0,1.58830935]
[1641380202069,0.02734006,46779.0,46778.0,1.99201535]
[1641380202270,0.015,46779.0,46778.0,1.99201535]
[1641380202473,0.015,46779.0,46778.0,1.66201535]
[1641380203072,0.36684613,46794.0,46778.0,2.30834535]
[1641380203317,0.36684613,46794.0,46787.0,0.053445]
[1641380203517,0.46684613,46794.0,46787.0,0.053445]
[1641380203716,0.46684613,46794.0,46785.0,0.05]
[1641380203917,0.27896633,46786.0,46785.0,0.05]